{"text_format":"1","workbook":"xlsx","n_sheets":3,"sheets":["FACTURES ACOMPTE","BASE_DE_DONNEES","Feuil1"],"not_rendered":{"charts":0,"images":0,"macros":1,"external_links":0,"defined_names":6,"comments":0,"pivot_tables":0},"unopened":[],"bounds":{"document_bytes":16777216,"sheet_cells":100000,"rows_first":2000,"rows_last":500,"rows_between":2000,"halvings":0,"cell_chars":16384,"cell_head_chars":4096},"cells_cut":0,"cells_raw":0,"read":"whole","date_system":"1900"}

{"sheet":"FACTURES ACOMPTE","index":0,"n_rows":106,"n_cols":8,"rows_kept":106,"cut":false,"hidden":false,"merged":[[1,5,1,7],[6,6,6,7],[54,0,54,2],[56,0,56,2],[64,0,64,2],[53,0,53,2],[21,1,21,2],[22,0,22,2],[23,0,23,2],[24,0,24,2],[33,0,33,2],[34,0,34,2],[10,5,10,6],[105,0,105,6],[3,6,3,7],[4,6,4,7],[79,0,79,2],[80,0,80,2],[91,0,91,1],[91,2,91,3],[101,0,101,1],[101,2,101,3],[70,0,70,2],[71,0,71,2],[73,0,73,2],[74,0,74,2],[84,5,85,5],[84,6,85,7],[72,0,72,2],[78,0,78,2],[31,0,31,2],[32,0,32,2],[69,0,69,2],[2,1,16,4],[18,0,18,1],[77,0,77,2]]}
[]
[null,null,null,null,null,"FACTURE INITIALE"]
[null,null,null,null,null,"N°",1234,456]
[null,null,null,null,null,"Ref. Devis"]
[null,null,null,null,null,"Date"]
[]
[]
[null,null,null,null,null,"A l'attention de:","Nom","ab"]
[null,null,null,null,null,null,"Prenom","e"]
[null,null,null,null,null,null,"Adresse"]
[null,null,null,null,null,"Code postal-Ville"]
[null,null,null,null,null,null,"N° TELEPHONE"]
[null,null,null,null,null,null,"NOMS DES CONTACTS"]
[null,null,null,null,null,null,"COORDONNEES CONTACT"]
[]
[]
[]
[]
[]
[]
[]
["DESIGNATION","Realisation Video Culture d'entreprise",null,"Qté","PU HT","Commentaires","Nb.  J(/H)","TOTAL HT"]
["PREPARATION DE TOURNAGE"]
["Développement d'un projet",null,null,1,45,"Tarif/Heure",1,0]
[" - Pitch",null,null,null,null,"PRESTATION OFFERTE",null,{"$f":"E25*G25","v":0}]
[" - Scenario",null,null,null,null,"PRESTATION OFFERTE",null,{"$f":"E26*G26","v":0}]
[" - Préparation de tournage",null,null,null,null,"PRESTATION OFFERTE",null,{"$f":"E27*G27","v":0}]
[]
["Sous-total",null,null,null,null,null,null,{"$f":"SUM(H24:H27)","v":0}]
[]
[]
["TOURNAGE / SHOOTING"]
["Réalisateur / Chef Opérateur",null,null,1,300,null,1,{"$f":"E33*G33*D33","v":300}]
["Photographe",null,null,0,200,null,0,0]
["Assistant image & son",null,null,0,190,null,0,0]
[null,null,null,null,null,null,null,0]
["Matériel Prises de vues",null,null,null,null,null,null,0]
["DJI OSMO + 4K",null,null,1,50,null,1,50]
["Camera Canon EOS 5D Mark II",null,null,0,50,null,0,0]
["Accessoires complets (pieds, cartes, câbles, optiques)",null,null,0,25,null,0,0]
["Camera Canon EOS 7D",null,null,1,25,null,1,25]
["Accessoires complets (pieds, cartes, câbles, optiques)",null,null,1,25,null,1,25]
["Matériel Son",null,null,null,null,null,null,0]
["Micro HF",null,null,1,50,null,1,50]
["Boîtier enregistreur H4 + Micro directionnel",null,null,1,50,null,1,50]
["Machinerie",null,null,null,null,null,null,0]
["Travelling Ciné Slider",null,null,0,80,null,0,0]
["Lumière",null,null,null,null,null,null,0]
["Kit reportage - lights panels",null,null,0,50,null,0,0]
[null,null,null,null,null,null,null,0]
["Sous-total",null,null,null,null,null,null,{"$f":"SUM(H33:H49)","v":500}]
[]
[]
["POST-PRODUCTION"]
["Monteur Image & Son",null,null,1,200,null,5,{"$f":"E55*G55*D55","v":1000}]
["Assitant Monteur",null,null,0,190,null,0,0]
["Graphiste 2D / Motion Design",null,null,1,220,null,1,220]
[null,null,null,null,null,null,null,0]
["Matériel Montage",null,null,null,null,null,null,0]
["Station FCP",null,null,1,25,null,5,125]
["Station Office",null,null,1,25,null,1,25]
[null,null,null,null,null,null,null,0]
["Son",null,null,null,null,null,null,0]
["Recherche musicale, Mastering",null,null,0.5,250,"PRESTATION OFFERTE",0.5,0]
["* Ce devis ne comprend pas l'achat des droits concernant la musique choisie"]
[]
["Sous-total",null,null,null,null,null,null,{"$f":"SUM(H55:H64)","v":1370}]
[]
[]
["SUIVI / DIFFUSION"]
["Retouches (au delà de 2 retours)",null,null,0,20,"Tarif/Heure",0,{"$f":"E71*G71","v":0}]
["Diffusion sur les réseaux / Suivi",null,null,0,30,"Tarif/Heure",0,{"$f":"E72*G72","v":0}]
["Authoring DVD",null,null,0,80,"Tarif/Heure",0,{"$f":"E73*G73","v":0}]
["Dupplication DVD",null,null,0,1,"Tarif/Heure",0,{"$f":"E74*G74","v":0}]
[]
["Sous-total",null,null,null,null,null,null,{"$f":"SUM(H71:H72)","v":0}]
[]
["COMMUNICATION"]
["Rédaction de contenu pour support de Communication \n(Tarif dégressif pour commande de plus de 10 heures mensuelles)",null,null,0,20,"Tarif/Heure",0,{"$f":"E79*G79","v":0}]
["Rédaction de contenu pour support de Communication \n(Tarif dégressif pour commande de plus de 10 heures mensuelles)",null,null,0,25,"Tarif/Heure",0,{"$f":"E80*G80","v":0}]
[]
["Sous-total",null,null,null,null,null,null,{"$f":"SUM(H79:H81)","v":0}]
[]
[]
[null,null,null,null,null,"TOTAL",{"$f":"H76+H67+H51+H29+H82","v":1870}]
[]
[]
[null,null,null,null,null,"ACOMPTE À VERSER",null,{"$f":"G85*30/100","v":561}]
[]
[null,null,null,null,null,"RESTE À PAYER",null,{"$f":"G85-H88","v":1309}]
[]
[]
[]
[]
[]
[]
[]
[]
[]
[]
[]
[]
[]
[]
[]
["Taux des pénalités exigibles à compter du 31 septembre en l'absence de paiement: 9 %\nIndeminité forfaitaire pour frais de recouvrement en cas de retard de paiement : 40 € \nNos conditions de vente ne prévoient pas d'escompte pour paiement anticipé."]

{"sheet":"BASE_DE_DONNEES","index":1,"n_rows":10,"n_cols":7,"rows_kept":10,"cut":false,"hidden":false,"merged":[]}
["Nom","Prenom","ADRESSE","VILLE","N° TELEPHONE","NOMS DES CONTACTS","COORDONNEES CONTACT"]
["x","a","9, rue Bidule","92200 Neuilly-Sur-Seine","01 49 42 96 69","Bidule Bidule","mm@bidule.com"]
["a","b"]
["b","c"]
["bb","d"]
["ab","e"]
["ba","f"]
["c","g"]
["cb","h"]
["cc","i"]

{"sheet":"Feuil1","index":2,"n_rows":9,"n_cols":3,"rows_kept":9,"cut":false,"hidden":false,"merged":[]}
[]
[null,null,"1/ Comment dois je faire pour que la cellule (8,8) soit programmé avec de l'auto complétion (par exemple, à partir de ma base de donnée sur la feuille 2, si je commence à écrire sur la feuille de facture \"B\", une liste s'affiche avec tous les noms de la base de données qui commencent par \"B\". Si je mets, \"Bi\", ne reste plus que les noms qui commencent par Bi et qui apparaissent dans la base de données, etc... "]
[]
[null,null,"2/ Quand je sélectionne suite à l'auto complétion : Bidule, j'aimerais que les cellules (9, 8) (10, 8) (12, 8) (13, 8) (14, 8) se remplissent automatiquement avec l'adresse, CP, ville, contact, numéro de tel indiqués sur la base de données. "]
[]
[]
[null,null,"En situation ça ferait : "]
[]
[null,null,"Je rentre \"Bid... \" sur ma base de données, je vois s'afficher Bidule. Je clique dessus, ça me le valide comme nom de client et ça auto remplit l'adresse et coordonnées, indiquées sur la feuille base de données. "]